Workbook

Sheet Worksheet
E1: =CONCATENATE("Go up or down in ",IF(B10,"multiples of",""),":") -> Go up or down in : | F1: Continue these number sequences, writing each number in its simplest form
D2: 1 | E2: =10^(-1*D2) -> 0.1 | F2: a) | G2: 4.6 | H2: , | I2: 4.7 | J2: , | K2: 4.8 | L2: , | M2: 4.9 | N2: , | O2: 5 | P2: , | Q2: 5.1 | R2: , | S2: 5.2
A3: Variables | D3: 2 | E3: =10^(-1*D3) -> 0.01 | F3: b) | G3: 2.1 | H3: , | I3: 2.11 | J3: , | K3: 2.12 | L3: , | M3: 2.13 | N3: , | O3: 2.14 | P3: , | Q3: 2.15 | R3: , | S3: 2.16
A4: SHOW ANSWERS? | B4: FALSE | D4: 1 | E4: 0.1 | F4: c) | G4: 5.71 | H4: , | I4: 5.81 | J4: , | K4: 5.91 | L4: , | M4: 6.01 | N4: , | O4: 6.11 | P4: , | Q4: 6.21 | R4: , | S4: 6.31
A5: Up only | B5: 1 | D5: 2 | E5: 0.01 | F5: d) | G5: 2.46 | H5: , | I5: 2.47 | J5: , | K5: 2.48 | L5: , | M5: 2.49 | N5: , | O5: 2.5 | P5: , | Q5: 2.51 | R5: , | S5: 2.52
A6: Down only | D6: 1 | E6: 0.1 | F6: e) | G6: 3.71 | H6: , | I6: 3.81 | J6: , | K6: 3.91 | L6: , | M6: 4.01 | N6: , | O6: 4.11 | P6: , | Q6: 4.21 | R6: , | S6: 4.31
A7: Up and down | D7: 2 | E7: 0.01 | F7: f) | G7: 1.07 | H7: , | I7: 1.08 | J7: , | K7: 1.09 | L7: , | M7: 1.1 | N7: , | O7: 1.11 | P7: , | Q7: 1.12 | R7: , | S7: 1.13
A8: Maximum number of decimal places | B8: 2 | D8: 1 | E8: 0.1 | F8: g) | G8: 4.7 | H8: , | I8: 4.8 | J8: , | K8: 4.9 | L8: , | M8: 5 | N8: , | O8: 5.1 | P8: , | Q8: 5.2 | R8: , | S8: 5.3
A9: Maximum integer part of number | B9: 5 | D9: 2 | E9: 0.01 | F9: h) | G9: 1 | H9: , | I9: 1.01 | J9: , | K9: 1.02 | L9: , | M9: 1.03 | N9: , | O9: 1.04 | P9: , | Q9: 1.05 | R9: , | S9: 1.06
A10: Allow to go down in multiples of (e.g.) 0.1 as well as just 0.1? | B10: FALSE | D10: 1 | E10: 0.1 | F10: i) | G10: 3.63 | H10: , | I10: 3.73 | J10: , | K10: 3.83 | L10: , | M10: 3.93 | N10: , | O10: 4.03 | P10: , | Q10: 4.13 | R10: , | S10: 4.23
D11: 2 | E11: 0.01 | F11: j) | G11: 2.4 | H11: , | I11: 2.41 | J11: , | K11: 2.42 | L11: , | M11: 2.43 | N11: , | O11: 2.44 | P11: , | Q11: 2.45 | R11: , | S11: 2.46
D12: 1 | E12: 0.1 | F12: k) | G12: 4.72 | H12: , | I12: 4.82 | J12: , | K12: 4.92 | L12: , | M12: 5.02 | N12: , | O12: 5.12 | P12: , | Q12: 5.22 | R12: , | S12: 5.32
D13: 2 | E13: 0.01 | F13: l) | G13: 5.17 | H13: , | I13: 5.18 | J13: , | K13: 5.19 | L13: , | M13: 5.2 | N13: , | O13: 5.21 | P13: , | Q13: 5.22 | R13: , | S13: 5.23
D14: 1 | E14: 0.1 | F14: m) | G14: 5 | H14: , | I14: 5.1 | J14: , | K14: 5.2 | L14: , | M14: 5.3 | N14: , | O14: 5.4 | P14: , | Q14: 5.5 | R14: , | S14: 5.6
D15: 2 | E15: 0.01 | F15: n) | G15: 3.38 | H15: , | I15: 3.39 | J15: , | K15: 3.4 | L15: , | M15: 3.41 | N15: , | O15: 3.42 | P15: , | Q15: 3.43 | R15: , | S15: 3.44
E16: if these numbers go red, you have chosen them to be too big compared to the maximum number of digits - only matters in questions going down

Sheet SYSTEM FORMULAE
B1: going up or down in | F1: units | G1: 1 | H1: 2 | I1: 3 | J1: 4
A2: =Worksheet!D2 -> 1 | B2: =Worksheet!E2 -> 0.1 | C2: 1 | E2: =IF(Worksheet!$B$5=1,"up",IF(Worksheet!$B$5=2,"down",CHOOSE(RANDBETWEEN(1,2),"up","down"))) -> up | F2: =RANDBETWEEN(IF(E2="down",C2*B2*7,1),MAX(Worksheet!$B$9,C2*B2*7+1)) -> 5 | G2: =IF(Worksheet!$B$8<G$1,0,IF(AND($E2="up",$A2=G$1),CHOOSE(RANDBETWEEN(1,4),7,6,8,0)*IF(C2=2,2,1),IF(AND($E2="down",$A2=G$1),CHOOSE(RANDBETWEEN(1,4),3,2,0,4)*IF(C2=2,2,1),RANDBETWEEN(0,RANDBETWEEN(0,9))))) -> 6 | H2: =IF(Worksheet!$B$8<H$1,0,IF(AND($E2="up",$A2=H$1),CHOOSE(RANDBETWEEN(1,4),7,6,8,0)*IF(D2=2,2,1),IF(AND($E2="down",$A2=H$1),CHOOSE(RANDBETWEEN(1,4),3,2,0,4)*IF(D2=2,2,1),RANDBETWEEN(0,RANDBETWEEN(0,9))))) -> 3 | I2: =IF(Worksheet!$B$8<I$1,0,IF(AND($E2="up",$A2=I$1),CHOOSE(RANDBETWEEN(1,4),7,6,8,0)*IF(E2=2,2,1),IF(AND($E2="down",$A2=I$1),CHOOSE(RANDBETWEEN(1,4),3,2,0,4)*IF(E2=2,2,1),RANDBETWEEN(0,RANDBETWEEN(0,9))))) -> 0 | J2: =IF(Worksheet!$B$8<J$1,0,IF(AND($E2="up",$A2=J$1),CHOOSE(RANDBETWEEN(1,4),7,6,8,0)*IF(F2=2,2,1),IF(AND($E2="down",$A2=J$1),CHOOSE(RANDBETWEEN(1,4),3,2,0,4)*IF(F2=2,2,1),RANDBETWEEN(0,RANDBETWEEN(0,9))))) -> 0 | K2: a) | L2: =F2+0.1*G2+0.01*H2+0.001*I2+0.0001*J2 -> 5.63 | M2: , | N2: =IF($E2="up",L2+C2*$B2,L2-C2*$B2) -> 5.73 | O2: , | P2: =IF($E2="up",N2+C2*$B2,N2-C2*$B2) -> 5.83 | Q2: , | R2: =IF($E2="up",P2+C2*$B2,P2-C2*$B2) -> 5.93 | S2: , | T2: =IF($E2="up",R2+C2*$B2,R2-C2*$B2) -> 6.03 | U2: , | V2: =IF($E2="up",T2+C2*$B2,T2-C2*$B2) -> 6.13 | W2: , | X2: =IF($E2="up",V2+C2*$B2,V2-C2*$B2) -> 6.23
A3: =Worksheet!D3 -> 2 | B3: =Worksheet!E3 -> 0.01 | C3: 1 | E3: =IF(Worksheet!$B$5=1,"up",IF(Worksheet!$B$5=2,"down",CHOOSE(RANDBETWEEN(1,2),"up","down"))) -> up | F3: =RANDBETWEEN(IF(E3="down",C3*B3*7,1),MAX(Worksheet!$B$9,C3*B3*7+1)) -> 4 | G3: =IF(Worksheet!$B$8<G$1,0,IF(AND($E3="up",$A3=G$1),CHOOSE(RANDBETWEEN(1,4),7,6,8,0)*IF(C3=2,2,1),IF(AND($E3="down",$A3=G$1),CHOOSE(RANDBETWEEN(1,4),3,2,0,4)*IF(C3=2,2,1),RANDBETWEEN(0,RANDBETWEEN(0,9))))) -> 1 | H3: =IF(Worksheet!$B$8<H$1,0,IF(AND($E3="up",$A3=H$1),CHOOSE(RANDBETWEEN(1,4),7,6,8,0)*IF(D3=2,2,1),IF(AND($E3="down",$A3=H$1),CHOOSE(RANDBETWEEN(1,4),3,2,0,4)*IF(D3=2,2,1),RANDBETWEEN(0,RANDBETWEEN(0,9))))) -> 7 | I3: =IF(Worksheet!$B$8<I$1,0,IF(AND($E3="up",$A3=I$1),CHOOSE(RANDBETWEEN(1,4),7,6,8,0)*IF(E3=2,2,1),IF(AND($E3="down",$A3=I$1),CHOOSE(RANDBETWEEN(1,4),3,2,0,4)*IF(E3=2,2,1),RANDBETWEEN(0,RANDBETWEEN(0,9))))) -> 0 | J3: =IF(Worksheet!$B$8<J$1,0,IF(AND($E3="up",$A3=J$1),CHOOSE(RANDBETWEEN(1,4),7,6,8,0)*IF(F3=2,2,1),IF(AND($E3="down",$A3=J$1),CHOOSE(RANDBETWEEN(1,4),3,2,0,4)*IF(F3=2,2,1),RANDBETWEEN(0,RANDBETWEEN(0,9))))) -> 0 | K3: b) | L3: =F3+0.1*G3+0.01*H3+0.001*I3+0.0001*J3 -> 4.17 | M3: , | N3: =IF($E3="up",L3+C3*$B3,L3-C3*$B3) -> 4.18 | O3: , | P3: =IF($E3="up",N3+C3*$B3,N3-C3*$B3) -> 4.19 | Q3: , | R3: =IF($E3="up",P3+C3*$B3,P3-C3*$B3) -> 4.2 | S3: , | T3: =IF($E3="up",R3+C3*$B3,R3-C3*$B3) -> 4.21 | U3: , | V3: =IF($E3="up",T3+C3*$B3,T3-C3*$B3) -> 4.22 | W3: , | X3: =IF($E3="up",V3+C3*$B3,V3-C3*$B3) -> 4.23
A4: =Worksheet!D4 -> 1 | B4: =Worksheet!E4 -> 0.1 | C4: =IF(AND(Worksheet!$B$10,NOT(B4=1)),CHOOSE(RANDBETWEEN(1,5),1,2,5,RANDBETWEEN(1,5),5),1) -> 1 | E4: =IF(Worksheet!$B$5=1,"up",IF(Worksheet!$B$5=2,"down",CHOOSE(RANDBETWEEN(1,2),"up","down"))) -> up | F4: =RANDBETWEEN(IF(E4="down",C4*B4*7,1),MAX(Worksheet!$B$9,C4*B4*7+1)) -> 1 | G4: =IF(Worksheet!$B$8<G$1,0,IF(AND($E4="up",$A4=G$1),CHOOSE(RANDBETWEEN(1,4),7,6,8,0)*IF(C4=2,2,1),IF(AND($E4="down",$A4=G$1),CHOOSE(RANDBETWEEN(1,4),3,2,0,4)*IF(C4=2,2,1),RANDBETWEEN(0,RANDBETWEEN(0,9))))) -> 8 | H4: =IF(Worksheet!$B$8<H$1,0,IF(AND($E4="up",$A4=H$1),CHOOSE(RANDBETWEEN(1,4),7,6,8,0)*IF(D4=2,2,1),IF(AND($E4="down",$A4=H$1),CHOOSE(RANDBETWEEN(1,4),3,2,0,4)*IF(D4=2,2,1),RANDBETWEEN(0,RANDBETWEEN(0,9))))) -> 0 | I4: =IF(Worksheet!$B$8<I$1,0,IF(AND($E4="up",$A4=I$1),CHOOSE(RANDBETWEEN(1,4),7,6,8,0)*IF(E4=2,2,1),IF(AND($E4="down",$A4=I$1),CHOOSE(RANDBETWEEN(1,4),3,2,0,4)*IF(E4=2,2,1),RANDBETWEEN(0,RANDBETWEEN(0,9))))) -> 0 | J4: =IF(Worksheet!$B$8<J$1,0,IF(AND($E4="up",$A4=J$1),CHOOSE(RANDBETWEEN(1,4),7,6,8,0)*IF(F4=2,2,1),IF(AND($E4="down",$A4=J$1),CHOOSE(RANDBETWEEN(1,4),3,2,0,4)*IF(F4=2,2,1),RANDBETWEEN(0,RANDBETWEEN(0,9))))) -> 0 | K4: c) | L4: 1.8 | M4: , | N4: 1.9 | O4: , | P4: 2 | Q4: , | R4: 2.1 | S4: , | T4: 2.2 | U4: , | V4: 2.3 | W4: , | X4: 2.4
A5: =Worksheet!D5 -> 2 | B5: =Worksheet!E5 -> 0.01 | C5: =IF(AND(Worksheet!$B$10,NOT(B5=1)),CHOOSE(RANDBETWEEN(1,5),1,2,5,RANDBETWEEN(1,5),5),1) -> 1 | E5: =IF(Worksheet!$B$5=1,"up",IF(Worksheet!$B$5=2,"down",CHOOSE(RANDBETWEEN(1,2),"up","down"))) -> up | F5: =RANDBETWEEN(IF(E5="down",C5*B5*7,1),MAX(Worksheet!$B$9,C5*B5*7+1)) -> 2 | G5: =IF(Worksheet!$B$8<G$1,0,IF(AND($E5="up",$A5=G$1),CHOOSE(RANDBETWEEN(1,4),7,6,8,0)*IF(C5=2,2,1),IF(AND($E5="down",$A5=G$1),CHOOSE(RANDBETWEEN(1,4),3,2,0,4)*IF(C5=2,2,1),RANDBETWEEN(0,RANDBETWEEN(0,9))))) -> 1 | H5: =IF(Worksheet!$B$8<H$1,0,IF(AND($E5="up",$A5=H$1),CHOOSE(RANDBETWEEN(1,4),7,6,8,0)*IF(D5=2,2,1),IF(AND($E5="down",$A5=H$1),CHOOSE(RANDBETWEEN(1,4),3,2,0,4)*IF(D5=2,2,1),RANDBETWEEN(0,RANDBETWEEN(0,9))))) -> 0 | I5: =IF(Worksheet!$B$8<I$1,0,IF(AND($E5="up",$A5=I$1),CHOOSE(RANDBETWEEN(1,4),7,6,8,0)*IF(E5=2,2,1),IF(AND($E5="down",$A5=I$1),CHOOSE(RANDBETWEEN(1,4),3,2,0,4)*IF(E5=2,2,1),RANDBETWEEN(0,RANDBETWEEN(0,9))))) -> 0 | J5: =IF(Worksheet!$B$8<J$1,0,IF(AND($E5="up",$A5=J$1),CHOOSE(RANDBETWEEN(1,4),7,6,8,0)*IF(F5=2,2,1),IF(AND($E5="down",$A5=J$1),CHOOSE(RANDBETWEEN(1,4),3,2,0,4)*IF(F5=2,2,1),RANDBETWEEN(0,RANDBETWEEN(0,9))))) -> 0 | K5: d) | L5: 2.1 | M5: , | N5: 2.11 | O5: , | P5: 2.12 | Q5: , | R5: 2.13 | S5: , | T5: 2.14 | U5: , | V5: 2.15 | W5: , | X5: 2.16
A6: =Worksheet!D6 -> 1 | B6: =Worksheet!E6 -> 0.1 | C6: =IF(AND(Worksheet!$B$10,NOT(B6=1)),CHOOSE(RANDBETWEEN(1,5),1,2,5,RANDBETWEEN(1,5),5),1) -> 1 | E6: =IF(Worksheet!$B$5=1,"up",IF(Worksheet!$B$5=2,"down",CHOOSE(RANDBETWEEN(1,2),"up","down"))) -> up | F6: =RANDBETWEEN(IF(E6="down",C6*B6*7,1),MAX(Worksheet!$B$9,C6*B6*7+1)) -> 2 | G6: =IF(Worksheet!$B$8<G$1,0,IF(AND($E6="up",$A6=G$1),CHOOSE(RANDBETWEEN(1,4),7,6,8,0)*IF(C6=2,2,1),IF(AND($E6="down",$A6=G$1),CHOOSE(RANDBETWEEN(1,4),3,2,0,4)*IF(C6=2,2,1),RANDBETWEEN(0,RANDBETWEEN(0,9))))) -> 8 | H6: =IF(Worksheet!$B$8<H$1,0,IF(AND($E6="up",$A6=H$1),CHOOSE(RANDBETWEEN(1,4),7,6,8,0)*IF(D6=2,2,1),IF(AND($E6="down",$A6=H$1),CHOOSE(RANDBETWEEN(1,4),3,2,0,4)*IF(D6=2,2,1),RANDBETWEEN(0,RANDBETWEEN(0,9))))) -> 5 | I6: =IF(Worksheet!$B$8<I$1,0,IF(AND($E6="up",$A6=I$1),CHOOSE(RANDBETWEEN(1,4),7,6,8,0)*IF(E6=2,2,1),IF(AND($E6="down",$A6=I$1),CHOOSE(RANDBETWEEN(1,4),3,2,0,4)*IF(E6=2,2,1),RANDBETWEEN(0,RANDBETWEEN(0,9))))) -> 0 | J6: =IF(Worksheet!$B$8<J$1,0,IF(AND($E6="up",$A6=J$1),CHOOSE(RANDBETWEEN(1,4),7,6,8,0)*IF(F6=2,2,1),IF(AND($E6="down",$A6=J$1),CHOOSE(RANDBETWEEN(1,4),3,2,0,4)*IF(F6=2,2,1),RANDBETWEEN(0,RANDBETWEEN(0,9))))) -> 0 | K6: e) | L6: 2.85 | M6: , | N6: 2.95 | O6: , | P6: 3.05 | Q6: , | R6: 3.15 | S6: , | T6: 3.25 | U6: , | V6: 3.35 | W6: , | X6: 3.45
A7: =Worksheet!D7 -> 2 | B7: =Worksheet!E7 -> 0.01 | C7: =IF(AND(Worksheet!$B$10,NOT(B7=1)),CHOOSE(RANDBETWEEN(1,5),1,2,5,RANDBETWEEN(1,5),5),1) -> 1 | E7: =IF(Worksheet!$B$5=1,"up",IF(Worksheet!$B$5=2,"down",CHOOSE(RANDBETWEEN(1,2),"up","down"))) -> up | F7: =RANDBETWEEN(IF(E7="down",C7*B7*7,1),MAX(Worksheet!$B$9,C7*B7*7+1)) -> 4 | G7: =IF(Worksheet!$B$8<G$1,0,IF(AND($E7="up",$A7=G$1),CHOOSE(RANDBETWEEN(1,4),7,6,8,0)*IF(C7=2,2,1),IF(AND($E7="down",$A7=G$1),CHOOSE(RANDBETWEEN(1,4),3,2,0,4)*IF(C7=2,2,1),RANDBETWEEN(0,RANDBETWEEN(0,9))))) -> 0 | H7: =IF(Worksheet!$B$8<H$1,0,IF(AND($E7="up",$A7=H$1),CHOOSE(RANDBETWEEN(1,4),7,6,8,0)*IF(D7=2,2,1),IF(AND($E7="down",$A7=H$1),CHOOSE(RANDBETWEEN(1,4),3,2,0,4)*IF(D7=2,2,1),RANDBETWEEN(0,RANDBETWEEN(0,9))))) -> 8 | I7: =IF(Worksheet!$B$8<I$1,0,IF(AND($E7="up",$A7=I$1),CHOOSE(RANDBETWEEN(1,4),7,6,8,0)*IF(E7=2,2,1),IF(AND($E7="down",$A7=I$1),CHOOSE(RANDBETWEEN(1,4),3,2,0,4)*IF(E7=2,2,1),RANDBETWEEN(0,RANDBETWEEN(0,9))))) -> 0 | J7: =IF(Worksheet!$B$8<J$1,0,IF(AND($E7="up",$A7=J$1),CHOOSE(RANDBETWEEN(1,4),7,6,8,0)*IF(F7=2,2,1),IF(AND($E7="down",$A7=J$1),CHOOSE(RANDBETWEEN(1,4),3,2,0,4)*IF(F7=2,2,1),RANDBETWEEN(0,RANDBETWEEN(0,9))))) -> 0 | K7: f) | L7: 4.08 | M7: , | N7: 4.09 | O7: , | P7: 4.1 | Q7: , | R7: 4.11 | S7: , | T7: 4.12 | U7: , | V7: 4.13 | W7: , | X7: 4.14
A8: =Worksheet!D8 -> 1 | B8: =Worksheet!E8 -> 0.1 | C8: =IF(AND(Worksheet!$B$10,NOT(B8=1)),CHOOSE(RANDBETWEEN(1,5),1,2,5,RANDBETWEEN(1,5),5),1) -> 1 | E8: =IF(Worksheet!$B$5=1,"up",IF(Worksheet!$B$5=2,"down",CHOOSE(RANDBETWEEN(1,2),"up","down"))) -> up | F8: =RANDBETWEEN(IF(E8="down",C8*B8*7,1),MAX(Worksheet!$B$9,C8*B8*7+1)) -> 4 | G8: =IF(Worksheet!$B$8<G$1,0,IF(AND($E8="up",$A8=G$1),CHOOSE(RANDBETWEEN(1,4),7,6,8,0)*IF(C8=2,2,1),IF(AND($E8="down",$A8=G$1),CHOOSE(RANDBETWEEN(1,4),3,2,0,4)*IF(C8=2,2,1),RANDBETWEEN(0,RANDBETWEEN(0,9))))) -> 6 | H8: =IF(Worksheet!$B$8<H$1,0,IF(AND($E8="up",$A8=H$1),CHOOSE(RANDBETWEEN(1,4),7,6,8,0)*IF(D8=2,2,1),IF(AND($E8="down",$A8=H$1),CHOOSE(RANDBETWEEN(1,4),3,2,0,4)*IF(D8=2,2,1),RANDBETWEEN(0,RANDBETWEEN(0,9))))) -> 3 | I8: =IF(Worksheet!$B$8<I$1,0,IF(AND($E8="up",$A8=I$1),CHOOSE(RANDBETWEEN(1,4),7,6,8,0)*IF(E8=2,2,1),IF(AND($E8="down",$A8=I$1),CHOOSE(RANDBETWEEN(1,4),3,2,0,4)*IF(E8=2,2,1),RANDBETWEEN(0,RANDBETWEEN(0,9))))) -> 0 | J8: =IF(Worksheet!$B$8<J$1,0,IF(AND($E8="up",$A8=J$1),CHOOSE(RANDBETWEEN(1,4),7,6,8,0)*IF(F8=2,2,1),IF(AND($E8="down",$A8=J$1),CHOOSE(RANDBETWEEN(1,4),3,2,0,4)*IF(F8=2,2,1),RANDBETWEEN(0,RANDBETWEEN(0,9))))) -> 0 | K8: g) | L8: 4.63 | M8: , | N8: 4.73 | O8: , | P8: 4.83 | Q8: , | R8: 4.93 | S8: , | T8: 5.03 | U8: , | V8: 5.13 | W8: , | X8: 5.23
A9: =Worksheet!D9 -> 2 | B9: =Worksheet!E9 -> 0.01 | C9: =IF(AND(Worksheet!$B$10,NOT(B9=1)),CHOOSE(RANDBETWEEN(1,5),1,2,5,RANDBETWEEN(1,5),5),1) -> 1 | E9: =IF(Worksheet!$B$5=1,"up",IF(Worksheet!$B$5=2,"down",CHOOSE(RANDBETWEEN(1,2),"up","down"))) -> up | F9: =RANDBETWEEN(IF(E9="down",C9*B9*7,1),MAX(Worksheet!$B$9,C9*B9*7+1)) -> 1 | G9: =IF(Worksheet!$B$8<G$1,0,IF(AND($E9="up",$A9=G$1),CHOOSE(RANDBETWEEN(1,4),7,6,8,0)*IF(C9=2,2,1),IF(AND($E9="down",$A9=G$1),CHOOSE(RANDBETWEEN(1,4),3,2,0,4)*IF(C9=2,2,1),RANDBETWEEN(0,RANDBETWEEN(0,9))))) -> 0 | H9: =IF(Worksheet!$B$8<H$1,0,IF(AND($E9="up",$A9=H$1),CHOOSE(RANDBETWEEN(1,4),7,6,8,0)*IF(D9=2,2,1),IF(AND($E9="down",$A9=H$1),CHOOSE(RANDBETWEEN(1,4),3,2,0,4)*IF(D9=2,2,1),RANDBETWEEN(0,RANDBETWEEN(0,9))))) -> 0 | I9: =IF(Worksheet!$B$8<I$1,0,IF(AND($E9="up",$A9=I$1),CHOOSE(RANDBETWEEN(1,4),7,6,8,0)*IF(E9=2,2,1),IF(AND($E9="down",$A9=I$1),CHOOSE(RANDBETWEEN(1,4),3,2,0,4)*IF(E9=2,2,1),RANDBETWEEN(0,RANDBETWEEN(0,9))))) -> 0 | J9: =IF(Worksheet!$B$8<J$1,0,IF(AND($E9="up",$A9=J$1),CHOOSE(RANDBETWEEN(1,4),7,6,8,0)*IF(F9=2,2,1),IF(AND($E9="down",$A9=J$1),CHOOSE(RANDBETWEEN(1,4),3,2,0,4)*IF(F9=2,2,1),RANDBETWEEN(0,RANDBETWEEN(0,9))))) -> 0 | K9: h) | L9: 1 | M9: , | N9: 1.01 | O9: , | P9: 1.02 | Q9: , | R9: 1.03 | S9: , | T9: 1.04 | U9: , | V9: 1.05 | W9: , | X9: 1.06
A10: =Worksheet!D10 -> 1 | B10: =Worksheet!E10 -> 0.1 | C10: =IF(AND(Worksheet!$B$10,NOT(B10=1)),CHOOSE(RANDBETWEEN(1,5),1,2,5,RANDBETWEEN(1,5),5),1) -> 1 | E10: =IF(Worksheet!$B$5=1,"up",IF(Worksheet!$B$5=2,"down",CHOOSE(RANDBETWEEN(1,2),"up","down"))) -> up | F10: =RANDBETWEEN(IF(E10="down",C10*B10*7,1),MAX(Worksheet!$B$9,C10*B10*7+1)) -> 1 | G10: =IF(Worksheet!$B$8<G$1,0,IF(AND($E10="up",$A10=G$1),CHOOSE(RANDBETWEEN(1,4),7,6,8,0)*IF(C10=2,2,1),IF(AND($E10="down",$A10=G$1),CHOOSE(RANDBETWEEN(1,4),3,2,0,4)*IF(C10=2,2,1),RANDBETWEEN(0,RANDBETWEEN(0,9))))) -> 8 | H10: =IF(Worksheet!$B$8<H$1,0,IF(AND($E10="up",$A10=H$1),CHOOSE(RANDBETWEEN(1,4),7,6,8,0)*IF(D10=2,2,1),IF(AND($E10="down",$A10=H$1),CHOOSE(RANDBETWEEN(1,4),3,2,0,4)*IF(D10=2,2,1),RANDBETWEEN(0,RANDBETWEEN(0,9))))) -> 6 | I10: =IF(Worksheet!$B$8<I$1,0,IF(AND($E10="up",$A10=I$1),CHOOSE(RANDBETWEEN(1,4),7,6,8,0)*IF(E10=2,2,1),IF(AND($E10="down",$A10=I$1),CHOOSE(RANDBETWEEN(1,4),3,2,0,4)*IF(E10=2,2,1),RANDBETWEEN(0,RANDBETWEEN(0,9))))) -> 0 | J10: =IF(Worksheet!$B$8<J$1,0,IF(AND($E10="up",$A10=J$1),CHOOSE(RANDBETWEEN(1,4),7,6,8,0)*IF(F10=2,2,1),IF(AND($E10="down",$A10=J$1),CHOOSE(RANDBETWEEN(1,4),3,2,0,4)*IF(F10=2,2,1),RANDBETWEEN(0,RANDBETWEEN(0,9))))) -> 0 | K10: i) | L10: 1.86 | M10: , | N10: 1.96 | O10: , | P10: 2.06 | Q10: , | R10: 2.16 | S10: , | T10: 2.26 | U10: , | V10: 2.36 | W10: , | X10: 2.46
A11: =Worksheet!D11 -> 2 | B11: =Worksheet!E11 -> 0.01 | C11: =IF(AND(Worksheet!$B$10,NOT(B11=1)),CHOOSE(RANDBETWEEN(1,5),1,2,5,RANDBETWEEN(1,5),5),1) -> 1 | E11: =IF(Worksheet!$B$5=1,"up",IF(Worksheet!$B$5=2,"down",CHOOSE(RANDBETWEEN(1,2),"up","down"))) -> up | F11: =RANDBETWEEN(IF(E11="down",C11*B11*7,1),MAX(Worksheet!$B$9,C11*B11*7+1)) -> 1 | G11: =IF(Worksheet!$B$8<G$1,0,IF(AND($E11="up",$A11=G$1),CHOOSE(RANDBETWEEN(1,4),7,6,8,0)*IF(C11=2,2,1),IF(AND($E11="down",$A11=G$1),CHOOSE(RANDBETWEEN(1,4),3,2,0,4)*IF(C11=2,2,1),RANDBETWEEN(0,RANDBETWEEN(0,9))))) -> 1 | H11: =IF(Worksheet!$B$8<H$1,0,IF(AND($E11="up",$A11=H$1),CHOOSE(RANDBETWEEN(1,4),7,6,8,0)*IF(D11=2,2,1),IF(AND($E11="down",$A11=H$1),CHOOSE(RANDBETWEEN(1,4),3,2,0,4)*IF(D11=2,2,1),RANDBETWEEN(0,RANDBETWEEN(0,9))))) -> 6 | I11: =IF(Worksheet!$B$8<I$1,0,IF(AND($E11="up",$A11=I$1),CHOOSE(RANDBETWEEN(1,4),7,6,8,0)*IF(E11=2,2,1),IF(AND($E11="down",$A11=I$1),CHOOSE(RANDBETWEEN(1,4),3,2,0,4)*IF(E11=2,2,1),RANDBETWEEN(0,RANDBETWEEN(0,9))))) -> 0 | J11: =IF(Worksheet!$B$8<J$1,0,IF(AND($E11="up",$A11=J$1),CHOOSE(RANDBETWEEN(1,4),7,6,8,0)*IF(F11=2,2,1),IF(AND($E11="down",$A11=J$1),CHOOSE(RANDBETWEEN(1,4),3,2,0,4)*IF(F11=2,2,1),RANDBETWEEN(0,RANDBETWEEN(0,9))))) -> 0 | K11: j) | L11: 1.16 | M11: , | N11: 1.17 | O11: , | P11: 1.18 | Q11: , | R11: 1.19 | S11: , | T11: 1.2 | U11: , | V11: 1.21 | W11: , | X11: 1.22
A12: =Worksheet!D12 -> 1 | B12: =Worksheet!E12 -> 0.1 | C12: =IF(AND(Worksheet!$B$10,NOT(B12=1)),CHOOSE(RANDBETWEEN(1,5),1,2,5,RANDBETWEEN(1,5),5),1) -> 1 | E12: =IF(Worksheet!$B$5=1,"up",IF(Worksheet!$B$5=2,"down",CHOOSE(RANDBETWEEN(1,2),"up","down"))) -> up | F12: =RANDBETWEEN(IF(E12="down",C12*B12*7,1),MAX(Worksheet!$B$9,C12*B12*7+1)) -> 2 | G12: =IF(Worksheet!$B$8<G$1,0,IF(AND($E12="up",$A12=G$1),CHOOSE(RANDBETWEEN(1,4),7,6,8,0)*IF(C12=2,2,1),IF(AND($E12="down",$A12=G$1),CHOOSE(RANDBETWEEN(1,4),3,2,0,4)*IF(C12=2,2,1),RANDBETWEEN(0,RANDBETWEEN(0,9))))) -> 0 | H12: =IF(Worksheet!$B$8<H$1,0,IF(AND($E12="up",$A12=H$1),CHOOSE(RANDBETWEEN(1,4),7,6,8,0)*IF(D12=2,2,1),IF(AND($E12="down",$A12=H$1),CHOOSE(RANDBETWEEN(1,4),3,2,0,4)*IF(D12=2,2,1),RANDBETWEEN(0,RANDBETWEEN(0,9))))) -> 3 | I12: =IF(Worksheet!$B$8<I$1,0,IF(AND($E12="up",$A12=I$1),CHOOSE(RANDBETWEEN(1,4),7,6,8,0)*IF(E12=2,2,1),IF(AND($E12="down",$A12=I$1),CHOOSE(RANDBETWEEN(1,4),3,2,0,4)*IF(E12=2,2,1),RANDBETWEEN(0,RANDBETWEEN(0,9))))) -> 0 | J12: =IF(Worksheet!$B$8<J$1,0,IF(AND($E12="up",$A12=J$1),CHOOSE(RANDBETWEEN(1,4),7,6,8,0)*IF(F12=2,2,1),IF(AND($E12="down",$A12=J$1),CHOOSE(RANDBETWEEN(1,4),3,2,0,4)*IF(F12=2,2,1),RANDBETWEEN(0,RANDBETWEEN(0,9))))) -> 0 | K12: k) | L12: 2.03 | M12: , | N12: 2.13 | O12: , | P12: 2.23 | Q12: , | R12: 2.33 | S12: , | T12: 2.43 | U12: , | V12: 2.53 | W12: , | X12: 2.63
A13: =Worksheet!D13 -> 2 | B13: =Worksheet!E13 -> 0.01 | C13: =IF(AND(Worksheet!$B$10,NOT(B13=1)),CHOOSE(RANDBETWEEN(1,5),1,2,5,RANDBETWEEN(1,5),5),1) -> 1 | E13: =IF(Worksheet!$B$5=1,"up",IF(Worksheet!$B$5=2,"down",CHOOSE(RANDBETWEEN(1,2),"up","down"))) -> up | F13: =RANDBETWEEN(IF(E13="down",C13*B13*7,1),MAX(Worksheet!$B$9,C13*B13*7+1)) -> 2 | G13: =IF(Worksheet!$B$8<G$1,0,IF(AND($E13="up",$A13=G$1),CHOOSE(RANDBETWEEN(1,4),7,6,8,0)*IF(C13=2,2,1),IF(AND($E13="down",$A13=G$1),CHOOSE(RANDBETWEEN(1,4),3,2,0,4)*IF(C13=2,2,1),RANDBETWEEN(0,RANDBETWEEN(0,9))))) -> 0 | H13: =IF(Worksheet!$B$8<H$1,0,IF(AND($E13="up",$A13=H$1),CHOOSE(RANDBETWEEN(1,4),7,6,8,0)*IF(D13=2,2,1),IF(AND($E13="down",$A13=H$1),CHOOSE(RANDBETWEEN(1,4),3,2,0,4)*IF(D13=2,2,1),RANDBETWEEN(0,RANDBETWEEN(0,9))))) -> 6 | I13: =IF(Worksheet!$B$8<I$1,0,IF(AND($E13="up",$A13=I$1),CHOOSE(RANDBETWEEN(1,4),7,6,8,0)*IF(E13=2,2,1),IF(AND($E13="down",$A13=I$1),CHOOSE(RANDBETWEEN(1,4),3,2,0,4)*IF(E13=2,2,1),RANDBETWEEN(0,RANDBETWEEN(0,9))))) -> 0 | J13: =IF(Worksheet!$B$8<J$1,0,IF(AND($E13="up",$A13=J$1),CHOOSE(RANDBETWEEN(1,4),7,6,8,0)*IF(F13=2,2,1),IF(AND($E13="down",$A13=J$1),CHOOSE(RANDBETWEEN(1,4),3,2,0,4)*IF(F13=2,2,1),RANDBETWEEN(0,RANDBETWEEN(0,9))))) -> 0 | K13: l) | L13: 2.06 | M13: , | N13: 2.07 | O13: , | P13: 2.08 | Q13: , | R13: 2.09 | S13: , | T13: 2.1 | U13: , | V13: 2.11 | W13: , | X13: 2.12
A14: =Worksheet!D14 -> 1 | B14: =Worksheet!E14 -> 0.1 | C14: =IF(AND(Worksheet!$B$10,NOT(B14=1)),CHOOSE(RANDBETWEEN(1,5),1,2,5,RANDBETWEEN(1,5),5),1) -> 1 | E14: =IF(Worksheet!$B$5=1,"up",IF(Worksheet!$B$5=2,"down",CHOOSE(RANDBETWEEN(1,2),"up","down"))) -> up | F14: =RANDBETWEEN(IF(E14="down",C14*B14*7,1),MAX(Worksheet!$B$9,C14*B14*7+1)) -> 4 | G14: =IF(Worksheet!$B$8<G$1,0,IF(AND($E14="up",$A14=G$1),CHOOSE(RANDBETWEEN(1,4),7,6,8,0)*IF(C14=2,2,1),IF(AND($E14="down",$A14=G$1),CHOOSE(RANDBETWEEN(1,4),3,2,0,4)*IF(C14=2,2,1),RANDBETWEEN(0,RANDBETWEEN(0,9))))) -> 8 | H14: =IF(Worksheet!$B$8<H$1,0,IF(AND($E14="up",$A14=H$1),CHOOSE(RANDBETWEEN(1,4),7,6,8,0)*IF(D14=2,2,1),IF(AND($E14="down",$A14=H$1),CHOOSE(RANDBETWEEN(1,4),3,2,0,4)*IF(D14=2,2,1),RANDBETWEEN(0,RANDBETWEEN(0,9))))) -> 0 | I14: =IF(Worksheet!$B$8<I$1,0,IF(AND($E14="up",$A14=I$1),CHOOSE(RANDBETWEEN(1,4),7,6,8,0)*IF(E14=2,2,1),IF(AND($E14="down",$A14=I$1),CHOOSE(RANDBETWEEN(1,4),3,2,0,4)*IF(E14=2,2,1),RANDBETWEEN(0,RANDBETWEEN(0,9))))) -> 0 | J14: =IF(Worksheet!$B$8<J$1,0,IF(AND($E14="up",$A14=J$1),CHOOSE(RANDBETWEEN(1,4),7,6,8,0)*IF(F14=2,2,1),IF(AND($E14="down",$A14=J$1),CHOOSE(RANDBETWEEN(1,4),3,2,0,4)*IF(F14=2,2,1),RANDBETWEEN(0,RANDBETWEEN(0,9))))) -> 0 | K14: m) | L14: 4.8 | M14: , | N14: 4.9 | O14: , | P14: 5 | Q14: , | R14: 5.1 | S14: , | T14: 5.2 | U14: , | V14: 5.3 | W14: , | X14: 5.4
A15: =Worksheet!D15 -> 2 | B15: =Worksheet!E15 -> 0.01 | C15: =IF(AND(Worksheet!$B$10,NOT(B15=1)),CHOOSE(RANDBETWEEN(1,5),1,2,5,RANDBETWEEN(1,5),5),1) -> 1 | E15: =IF(Worksheet!$B$5=1,"up",IF(Worksheet!$B$5=2,"down",CHOOSE(RANDBETWEEN(1,2),"up","down"))) -> up | F15: =RANDBETWEEN(IF(E15="down",C15*B15*7,1),MAX(Worksheet!$B$9,C15*B15*7+1)) -> 5 | G15: =IF(Worksheet!$B$8<G$1,0,IF(AND($E15="up",$A15=G$1),CHOOSE(RANDBETWEEN(1,4),7,6,8,0)*IF(C15=2,2,1),IF(AND($E15="down",$A15=G$1),CHOOSE(RANDBETWEEN(1,4),3,2,0,4)*IF(C15=2,2,1),RANDBETWEEN(0,RANDBETWEEN(0,9))))) -> 0 | H15: =IF(Worksheet!$B$8<H$1,0,IF(AND($E15="up",$A15=H$1),CHOOSE(RANDBETWEEN(1,4),7,6,8,0)*IF(D15=2,2,1),IF(AND($E15="down",$A15=H$1),CHOOSE(RANDBETWEEN(1,4),3,2,0,4)*IF(D15=2,2,1),RANDBETWEEN(0,RANDBETWEEN(0,9))))) -> 8 | I15: =IF(Worksheet!$B$8<I$1,0,IF(AND($E15="up",$A15=I$1),CHOOSE(RANDBETWEEN(1,4),7,6,8,0)*IF(E15=2,2,1),IF(AND($E15="down",$A15=I$1),CHOOSE(RANDBETWEEN(1,4),3,2,0,4)*IF(E15=2,2,1),RANDBETWEEN(0,RANDBETWEEN(0,9))))) -> 0 | J15: =IF(Worksheet!$B$8<J$1,0,IF(AND($E15="up",$A15=J$1),CHOOSE(RANDBETWEEN(1,4),7,6,8,0)*IF(F15=2,2,1),IF(AND($E15="down",$A15=J$1),CHOOSE(RANDBETWEEN(1,4),3,2,0,4)*IF(F15=2,2,1),RANDBETWEEN(0,RANDBETWEEN(0,9))))) -> 0 | K15: n) | L15: 5.08 | M15: , | N15: 5.09 | O15: , | P15: 5.1 | Q15: , | R15: 5.11 | S15: , | T15: 5.12 | U15: , | V15: 5.13 | W15: , | X15: 5.14
